Cogmind - Beta 9.6 @@@ ROGUE MODE // 2020.05.09 @ 19:32:04 Player: Demise Result: Self-destructed Performance ------------- Evolutions (2) 1000 Regions Visited (3) 600 Robots Destroyed (5) 25 Value Destroyed (50) 50 Prototype IDs (0) 0 Alien Tech Used (0) 0 Bonus (0) 0 TOTAL SCORE: 1675 Bonus ------- None Cogmind --------- Core Integrity 540/550 Matter 244/300 Energy 125/125 System Corruption 0% Temperature Cool (0) Movement Flying (120) Ox1 Location -8/Materials Parts ------- > --- POWER (2) -------- Light Ion Engine > --- PROPULSION (3) --- Flight Unit > --- UTILITY (4) ------ Advanced Signal Interpreter Terrain Scan Processor ECM Suite > --- WEAPON (2) ------- Hammer > --- INVENTORY (4) ---- Flight Unit Flight Unit Small Storage Unit Improved Light Armor Plating Peak State ------------ > --- POWER ------------ Light Ion Engine > --- PROPULSION ------- Flight Unit Flight Unit Flight Unit > --- UTILITY ---------- Advanced Signal Interpreter Terrain Scan Processor ECM Suite > --- WEAPON ----------- Light Assault Rifle Hammer > --- INVENTORY -------- Flight Unit Flight Unit Small Storage Unit [Rating: 12] Favorites ----------- Power Light Ion Engine Engine Light Ion Engine Propulsion Flight Unit Leg Aluminum Leg Wheel Compact Wheel Flight Unit Flight Unit Utility Tractor Beam Device Tractor Beam Storage Small Storage Unit Processor Terrain Scan Processor Weapon Light Assault Rifle Ballistic Gun Light Assault Rifle Impact Weapon Hammer Build | -11 -10 -9 -8 ------- Run | Scr Mat Mat Mat Slots Evolved 4 | . . 2 2 Power 1 | . . . 1 Propulsion 1 | . . . 1 Utility 2 | . . 2 . Weapon . | . . . . Parts Attached 10 | 3 3 2 2 Power . | . . . . Engine . | . . . . Core . | . . . . Reactor . | . . . . Propulsion 5 | 2 2 . 1 Treads . | . . . . Leg . | . . . . Wheel 2 | 2 . . . Hover . | . . . . Flight 3 | . 2 . 1 Utility 4 | 1 . 2 1 Device 2 | 1 . 1 . Storage . | . . . . Processor 2 | . . 1 1 Hackware . | . . . . Protection . | . . . . Artifact . | . . . . Weapon 1 | . 1 . . Energy Gun . | . . . . Energy Cannon . | . . . . Ballistic Gun . | . . . . Ballistic Cannon . | . . . . Launcher . | . . . . Special Weapon . | . . . . Impact Weapon 1 | . 1 . . Slashing Weapon . | . . . . Piercing Weapon . | . . . . Special Melee Weapon . | . . . . Unidentified Prototypes . | . . . . Parts Lost 4 | . . 1 3 Power . | . . . . Propulsion 2 | . . . 2 Utility 1 | . . 1 . Weapon 1 | . . . 1 Highest Loss Streak 3 | . . 1 3 Average Slot Usage (%) 86 | . 96 77 75 Engine 12 | . 14 11 9 Wheel 10 | . 21 . . Flight 14 | . 5 22 24 Device 13 | . 14 15 9 Storage 5 | . 11 . . Processor 5 | . . 6 16 Ballistic Gun 18 | . 26 11 7 Impact Weapon 5 | . 1 11 9 Naked Turns . | . . . . Heaviest Build 11 | 11 11 8 7 Greatest Support 32 | 32 32 8 12 Greatest Overweight (x) 1 | . 1 . . Average Overweight (x) . | . . . . Largest Inventory Capacity 6 | 6 6 4 4 Average Capacity 4 | 6 5 4 4 Most Carried 6 | 6 6 4 4 Average Carried 4 | 4 4 4 3 Final Capacity 6 | 6 4 4 4 Final Carried 4 | 4 4 4 4 Class Distribution -------------------- 100% | Mutant Dominant Class ---------------- Mutant | -10/Materials Mutant | -9/Materials Mutant | -8/Materials Resources | -11 -10 -9 -8 ----------- Run | Scr Mat Mat Mat Matter Collected 296 | 246 38 . 12 Remotely 50 | 12 38 . . Salvage Created 181 | 77 92 . 12 Parts 10 | 6 4 . . Haulers Intercepted 1 | . 1 . . Recyclers Shooed . | . . . . Parts Field Recycled . | . . . . Retrieved Matter . | . . . . Parts Self-Destructed . | . . . . Prevented . | . . . . Kills | -11 -10 -9 -8 ------- Run | Scr Mat Mat Mat Combat Hostiles Destroyed 1 | . 1 . . Guns 1 | . 1 . . Classes Destroyed 5 | 2 2 . 1 Worker 1 | . . . 1 Tunneler 1 | 1 . . . Hauler 1 | . 1 . . Recycler 1 | 1 . . . Grunt 1 | . 1 . . Best Kill Streak 2 | 2 2 . 1 Combat Bots Only 1 | . 1 . . Max Kills in Single Turn 1 | 1 1 . 1 Gunslinging . | . . . . Exploded . | . . . . Melee . | . . . . Uniques/NPCs Destroyed . | . . . . Combat | -11 -10 -9 -8 -------- Run | Scr Mat Mat Mat Damage Taken 279 | . 44 87 148 Core 43 | . 10 23 10 Absorbed by Shields . | . . . . Core Remaining (%) 96 | 100 96 94 . Volleys Fired 27 | 4 11 . 12 Largest 2 | 2 2 . 1 Hottest 40 | 40 40 . 20 Shots Fired 42 | 8 22 . 12 Gun 42 | 8 22 . 12 Cannon . | . . . . Launcher . | . . . . Special . | . . . . Kinetic 42 | 8 22 . 12 Thermal . | . . . . Explosive . | . . . . Electromagnetic . | . . . . Robot Hit Streak 4 | 4 4 . 3 Robot Miss Streak 5 | 3 2 . 5 Penetration Max . | . . . . Secondary Targets . | . . . . Shots Hit Robots 25 | 4 13 . 8 Core Hits 7 | 3 4 . . Critical Hits . | . . . . Critical Kills . | . . . . Critical Parts Destroyed . | . . . . Melee Attacks 2 | . . . 2 Impact 2 | . . . 2 Slashing . | . . . . Piercing . | . . . . Sneak Attacks 1 | . . . 1 Combat Hostiles . | . . . . Follow-up Attacks . | . . . . Damage Inflicted 288 | 52 145 . 91 Guns 207 | 52 145 . 10 Cannons . | . . . . Explosions . | . . . . Melee 81 | . . . 81 Ramming . | . . . . Kinetic 207 | 52 145 . 10 Thermal . | . . . . Explosive . | . . . . Electromagnetic . | . . . . Impact 81 | . . . 81 Slashing . | . . . . Piercing . | . . . . Highest Corruption . | . . . . Average Corruption . | . . . . Corruption Purged . | . . . . Overload Shots . | . . . . Overflow Damage 16 | . . . 16 Projectiles . | . . . . Explosions . | . . . . Melee 16 | . . . 16 Knockbacks 1 | . . . 1 Impact 1 | . . . 1 Kinetic . | . . . . Secondary . | . . . . Self-Inflicted Damage . | . . . . Shots . | . . . . Rammed . | . . . . Targets Rammed . | . . . . Kicked . | . . . . Crushed . | . . . . Highest Temperature 6 | . 6 . . Average Temperature 6 | . 6 . . Received Heat Transfer 42 | . 24 9 9 Siege Activations . | . . . . Robots Corrupted . | . . . . Combat Hostiles . | . . . . Parts Fried . | . . . . Impact Corruptions 2 | . . . 2 Robots Melted . | . . . . Combat Hostiles . | . . . . Parts Melted . | . . . . Heat Transferred . | . . . . Parts Sabotaged . | . . . . Parts Stolen . | . . . . Parts Stripped . | . . . . Power Chain Reactions . | . . . . Missiles Intercepted . | . . . . Alert | -11 -10 -9 -8 ------- Run | Scr Mat Mat Mat Peak Influence 65 | 10 63 65 42 Average Influence 32 | 7 34 42 30 Maximum Alert Level . | . . . . Low Security (%) 100 | 100 100 100 100 Level 1 . | . . . . Level 2 . | . . . . Level 3 . | . . . . Level 4 . | . . . . Level 5 . | . . . . High Security . | . . . . Max Security . | . . . . Squads Dispatched 2 | . 1 1 . Investigation . | . . . . Extermination . | . . . . Reinforcement 2 | . 1 1 . Assault . | . . . . Garrison . | . . . . Intercept . | . . . . Construction Impeded . | . . . . Haulers Reinforced . | . . . . Stealth | -11 -10 -9 -8 --------- Run | Scr Mat Mat Mat Distress Signals 3 | . 1 . 2 Communications Jammed . | . . . . Distress Signals . | . . . . Times Spotted 22 | . 5 12 5 Peak Tracking Total 8 | . 4 8 5 Tactical Retreats 2 | . . 2 . Traps | -11 -10 -9 -8 ------- Run | Scr Mat Mat Mat Traps Triggered . | . . . . Indirectly . | . . . . Trap Hack Attempts . | . . . . Triggered . | . . . . Disarmed . | . . . . Reprogrammed . | . . . . Reused . | . . . . Traps Extracted . | . . . . Installed . | . . . . Triggered . | . . . . Machines | -11 -10 -9 -8 ---------- Run | Scr Mat Mat Mat Machines Disabled . | . . . . Max in Single Turn . | . . . . Machines Sabotaged . | . . . . Garrisons Compromised . | . . . . Overloaded Fab Kills . | . . . . Fab Network Shutdowns . | . . . . Hacking | -11 -10 -9 -8 --------- Run | Scr Mat Mat Mat Machines Accessed 1 | . . 1 . Terminals 1 | . . 1 . Fabricators . | . . . . Repair Stations . | . . . . Recycling Units . | . . . . Scanalyzers . | . . . . Garrison Access . | . . . . Total Hacks 3 | . . 3 . Successful 2 | . . 2 . Failed 1 | . . 1 . Catastrophic 1 | . . 1 . Database Lockouts . | . . . . Manual 3 | . . 3 . Terminals 3 | . . 3 . Fabricators . | . . . . Repair Stations . | . . . . Recycling Units . | . . . . Scanalyzers . | . . . . Garrison Access . | . . . . Terminal Hacks 1 | . . 1 . Level Access Points 1 | . . 1 . Fabricator Hacks . | . . . . Repair Station Hacks . | . . . . Recycling Unit Hacks . | . . . . Scanalyzer . | . . . . Garrison Access Hacks . | . . . . Unauthorized Hacks 1 | . . 1 . Terminals 1 | . . 1 . Botnet 1 | . . 1 . Fabricators . | . . . . Repair Stations . | . . . . Recycling Units . | . . . . Scanalyzers . | . . . . Garrison Access . | . . . . Data Cores Recovered . | . . . . Used . | . . . . Hacking Detections 1 | . . 1 . Full Trace Events . | . . . . Feedback Events . | . . . . Feedback Blocked . | . . . . Robot Schematics Acquired . | . . . . Robots Built . | . . . . Matter . | . . . . Time . | . . . . Total Robot Build Rating . | . . . . Part Schematics Acquired . | . . . . Parts Built . | . . . . Matter . | . . . . Time . | . . . . Total Part Build Rating . | . . . . Parts Repaired . | . . . . Time . | . . . . Parts Recycled . | . . . . Recycled Matter . | . . . . Retrieved Matter . | . . . . Retrieved Components . | . . . . Parts Scanalyzed . | . . . . Part Schematics Acquired . | . . . . Parts Damaged . | . . . . Bothacking | -11 -10 -9 -8 ------------ Run | Scr Mat Mat Mat Used RIF Installer . | . . . . Robots Hacked . | . . . . Non-combat . | . . . . Combat . | . . . . Robot Hacks Applied . | . . . . Relay Couplers Released . | . . . . Robots Rewired . | . . . . Allies Hacked . | . . . . Hacks Repelled . | . . . . Allies | -11 -10 -9 -8 -------- Run | Scr Mat Mat Mat Total Allies . | . . . . Largest Group . | . . . . Highest-Rated Group . | . . . . Highest-Rated Ally . | . . . . Total Orders . | . . . . Ally Attacks . | . . . . Total Damage . | . . . . Kills . | . . . . Allies Corrupted . | . . . . Allies Melted . | . . . . Intel | -11 -10 -9 -8 ------- Run | Scr Mat Mat Mat Robot Analysis Total . | . . . . Derelict Logs Recovered . | . . . . Drone Launches . | . . . . Drone Recoveries . | . . . . Exploration | -11 -10 -9 -8 ------------- Run | Scr Mat Mat Mat Turns Passed 289 | 31 136 71 51 Spaces Moved 360 | 16 123 165 56 Core . | . . . . Treads . | . . . . Legs . | . . . . Wheels 87 | 16 71 . . Hover . | . . . . Flight 273 | . 52 165 56 Fastest Speed 34 | 100 37 37 34 Average Speed 51 | 100 74 37 34 Slowest Speed 120 | 100 120 37 34 Overloaded Moves . | . . . . Propulsion Burnouts . | . . . . Robots Hopped 3 | . . 3 . Cave-ins Triggered . | . . . . Exploration Rate (%) 18 | 2 40 23 10 Regions Visited 3 Branch Regions . Pre-discovered Areas . | . . . . Known Exits Taken 1 | . . 1 . Unknown Exits Taken 2 | 1 1 . . Scrap Searched . | . . . . Spaces Dug . | . . . . Terrain Destroyed . | . . . . Melee . | . . . . Projectile . | . . . . AOE . | . . . . Actions | -11 -10 -9 -8 --------- Run | Scr Mat Mat Mat Total 418 | 24 150 170 74 Wait 8 | . . 7 1 Move 351 | 15 122 158 56 Hop 3 | . . 3 . Pick Up 5 | . 4 . 1 Fast Attach 7 | 1 3 2 1 Attach 3 | 2 . . 1 Detach 2 | . 2 . . Swap . | . . . . Drop 10 | 2 8 . . Fire 27 | 4 11 . 12 Melee 2 | . . . 2 Ram . | . . . . Kick . | . . . . Crush . | . . . . Escape Stasis . | . . . . Rewire . | . . . . Trap . | . . . . Miscellaneous . | . . . . Route ------- -11/Scrapyard -10/Materials (discovered 2 exits: *Mat / [*Min]) -9/Materials (discovered 3 exits: *Mat x3) -8/Materials History --------- Turn | Location | Event 16 | -11/Scrapyard | Discovered new exit (range 2) 32 | -11/Scrapyard | Entered Materials 129 | -10/Materials | Discovered new exit (range 15) 166 | -10/Materials | Discovered new exit (range 5) 168 | -10/Materials | Entered another Materials area 168 | -9/Materials | Evolved 2 slots: Utility x2 204 | -9/Materials | Identified exit to Materials 239 | -9/Materials | Entered another Materials area 239 | -8/Materials | Evolved 2 slots: Power x1, Propulsion x1 290 | -8/Materials | Self-destructed Last Messages --------------- 00239_ Tractor Beam destroyed. 00239_ ALERT: Hostiles spotted, dispatching reinforcements to Terminal M004. PARAMETERS=POWER_1,PROPULSION_1 LOCATION=MATERIALS GOAL=ESCAPE 00244_ Acquired Adv. Signal Interpreter. 00253_ Acquired Imp. Light Armor Plating. 00255_ K-01 Serf collects debris. 00256_ Sneak attack on K-01 Serf. 00256_ Destroyed Wheel. 00256_ K-01 Serf system corrupted by crushing effect. 00256_ K-01 Serf knocked back. 00258_ K-01 Serf sends out distress signal. 00259_ Destroyed Med. Matter Pod. 00259_ K-01 Serf system corrupted by crushing effect. 00260_ K-01 Serf system terminally corrupted. 00262_ Acquired 12 matter. 00262_ W-25 Informer sends out distress signal. 00283_ Flight Unit destroyed. 00288_ Lgt. Assault Rifle destroyed. Map ----- +----------------------------------------------------+ | ?????????????????????????????????????????????????? | | ?????????????????????????????????????????????????? | | ?????????????????????????#+#?????????????????????? | | ????????????????????????# ?????????????????????? | | ????????????????????????# ?????????????????????? | | ???????????????????????? ?????????????????????? | | ????????????????????????# ?????????????????????? | | ????????????????????????# ?????????????????????? | | ????????????????????????# ?????????????????????? | | ????????????????????????# #????????????????????? | | ????????????????????????# ????????????????????? | | ????????????????????????# ????????????????????? | | ???????????????????????## ????????????????????? | | ????????????????????????/ #????????????????????? | | ????????????????????????# #????????????????????? | | ????????????????????????# #????????????????????? | | ????????????????????????# ^###############??????? | | ????????????????????????# # #??????? | | ????????????????????????# # """ #??????? | | ????????????????????????# # """ #??????? | | ?????????????????????#######+### + """ #??????? | | ?????????????????????# ## # #??????? | | ?????????????????????# """"g ## # [#??????? | | ?????????????????????# """" ## ########??????? | | ?????????????????????# """" ## #?????????????? | | ?????????????????????# s @ s ## #?????????????? | | ?????????????????????# """" ## #?????????????? | | ?????????????????????#! """" =## ############??? | | ?????????????????????# """" ## ## #??? | | ?????????????????????# s ## ## #??? | | ?????????????????????########### ## #??? | | ????????????????????########### # #??? | | ????????????????????# # [ #??? | | ????????????????????# / + #??? | | ????????????????????# # #??? | | ????????????????????# ####### # #??? | | ????????????????????# #?????###+#############??? | | ????????????????????# #?????? ?????????????? | | ????????????????????# #???? ???????????? | | ????????????????????#####???# #??????????? | | ????????????????????????????# #??????????? | | ????????????????????????????# #??????????? | | ????????????????????????????# #??????????? | | ????????????????????????????# #??????????? | | ????????????????????????????# #??????????? | | ????????????????????????????###########??????????? | | ?????????????????????????????????????????????????? | | ?????????????????????????????????????????????????? | | ?????????????????????????????????????????????????? | | ?????????????????????????????????????????????????? | +----------------------------------------------------+ Best States ------------- Heat Dissipation 31 Energy Generation 10 Energy Capacity 125 Matter Stores 300 Matter Capacity 300 Sight Range 16 Terrain Scan Density 85 ECM Strength 1 Evasion (%) 63 Item Schematics ----------------- None Robot Schematics ------------------ None Fabricated ------------ Nothing Alien Tech Used ----------------- None Achievements -------------- None Challenges ------------ None Game ------ Seed DamperThermalHumpback Manual? 0 Play Time 00:07:00 Cumulative 194.2 hours Start 2020.05.09 @ 19:26:05 End 2020.05.09 @ 19:32:04 Sessions 1 Manual Loads 0 Difficulty Rogue Special Mode None Game No. 249 Rogue 238 Adventurer 11 Explorer 0 Win Type - Total 0 Types 0/0/0/0/0/0/0 Lore% 50 Gallery% 64 Achievement% 44 Wizard Run 0 Options --------- ASCII 0 Keyboard 1 Movement Numpad Keybinds 0 Fullscreen 1 Font 12/Terminus Map View 83x54 Tactical HUD 1 Map Filters NONE Filters NONE Steam 1 RUN: 79c8799f-0d7a-4bdf-9829-f31ac3506e7e